bitfinex-derivatives/quotes_ETHF0:USTF0_20250824
["timestamp","ask_amount","ask_price","bid_price","bid_amount"]
[1756015319282,2.647,4786.6,4786.5,0.7893]
[1756015319480,2.647,4786.6,4786.5,0.4742]
[1756015320480,0.5876,4786.5,4786.2,0.89219]
[1756015320684,0.3754,4786.0,4785.7,0.41804]
[1756015320890,0.963,4785.8,4785.7,0.4742]
[1756015321082,0.3754,4785.8,4785.5,0.41806]
[1756015321281,0.963,4785.7,4785.6,0.18300046]
[1756015321779,0.3754,4785.7,4785.5,0.41805]
[1756015321980,0.963,4785.6,4785.5,0.89225]
[1756015322281,0.963,4785.6,4785.5,1.80165]
[1756015324284,0.7346,4785.6,4785.5,1.80165]
[1756015326391,2.4172,4785.6,4785.5,1.80165]
[1756015326990,1.6826,4785.6,4785.5,1.98460003]
[1756015327890,2.0418,4785.6,4785.5,1.98460003]
[1756015329095,2.1948,4785.6,4785.5,1.98460003]
[1756015329290,2.4236,4785.6,4785.5,1.80165]
[1756015330795,2.6548,4785.6,4785.5,1.80165]
[1756015331388,2.6548,4785.6,4785.5,1.98461784]
[1756015336106,2.6548,4785.6,4785.5,1.80165]
[1756015336396,2.6548,4785.6,4785.5,1.9846406]
[1756015341305,2.6548,4785.6,4785.5,1.80165]
[1756015341502,2.6548,4785.6,4785.5,0.4742]
[1756015342105,0.3818,4785.0,4784.9,0.1483]
[1756015342405,0.613,4785.0,4784.9,0.81952565]
[1756015342800,0.9722,4785.0,4784.9,0.63651]
[1756015343199,0.9722,4785.0,4784.9,0.87551]
[1756015344005,0.9722,4785.0,4784.9,1.50321]
[1756015344505,0.9722,4785.0,4784.9,1.72101]
[1756015345009,0.741,4785.0,4784.9,1.72101]
[1756015345407,0.741,4785.0,4784.9,1.90403052]
[1756015345601,2.2258,4785.2,4785.1,1.721]
[1756015346101,2.6858,4785.2,4784.9,0.63651]
[1756015346303,2.0954,4785.2,4784.9,0.41811]
[1756015346500,0.9722,4785.0,4784.9,0.41811]
[1756015346704,0.9722,4785.0,4784.9,0.87551]
[1756015348004,0.9722,4785.0,4784.9,1.17611]
[1756015348206,0.9722,4785.0,4784.9,1.50321]
[1756015348407,0.9722,4785.0,4784.9,1.72101]
[1756015349108,0.741,4785.0,4784.9,1.72101]
[1756015350212,0.741,4785.0,4784.9,1.9041526]
[1756015353014,2.0954,4785.2,4785.1,0.9365]
[1756015353215,0.741,4785.2,4785.1,1.721]
[1756015354212,0.3592,4785.2,4785.1,1.721]
[1756015354413,0.3592,4785.2,4785.1,1.90411834]
[1756015354613,0.3592,4785.2,4785.1,1.721]
[1756015354812,0.3592,4785.2,4785.1,1.90411818]
[1756015355315,0.3592,4785.2,4785.1,1.721]
[1756015357210,0.5172,4785.2,4785.1,1.721]
[1756015357411,0.5172,4785.2,4785.1,1.90412105]
[1756015359613,1.4169,4785.4,4785.3,1.75138]
[1756015359813,1.4169,4785.4,4785.3,1.93451749]
[1756015360019,1.6826,4785.6,4785.5,0.95396]
[1756015360219,1.6826,4785.6,4785.5,1.75136]
[1756015361120,1.6826,4785.6,4785.5,1.93449684]
[1756015361321,1.6826,4785.6,4785.5,1.75136]
[1756015361921,2.384,4785.6,4785.5,1.75136]
[1756015363717,1.6826,4785.6,4785.5,1.75136]
[1756015363914,1.6826,4785.6,4785.5,1.93451511]
[1756015366222,1.6826,4785.6,4785.5,1.75136]
[1756015366424,1.6826,4785.6,4785.5,1.93448207]
[1756015368418,1.6826,4785.6,4785.5,1.95528207]
[1756015369428,1.6826,4785.6,4785.5,1.93448207]
[1756015371829,1.6826,4785.6,4785.5,1.55998207]
[1756015372029,1.6826,4785.6,4785.5,1.93448207]
[1756015373718,2.0095,4785.6,4785.5,1.93448207]
[1756015374324,2.384,4785.6,4785.5,1.93448207]
[1756015374825,2.6022,4785.6,4785.5,1.93448207]
[1756015375031,2.6022,4785.6,4785.5,0.60118207]
[1756015375329,6.6022,4785.6,4785.5,0.60118207]
[1756015375530,6.6022,4785.6,4785.5,0.41806]
[1756015376230,5.6826,4785.6,4785.3,0.41807]
[1756015376431,0.9196,4785.4,4785.3,0.41807]
[1756015376633,0.9196,4785.4,4785.3,0.60096989]
[1756015377531,0.9196,4785.4,4785.3,1.05586989]
[1756015378133,2.8016,4785.4,4785.3,1.05586989]
[1756015380327,6.2565,4785.4,4784.9,0.41811]
[1756015380532,0.9196,4785.0,4784.9,0.41811]
[1756015381136,0.9196,4785.0,4784.9,0.87301]
[1756015381438,0.9196,4785.0,4784.9,0.41811]
[1756015382043,0.9196,4785.0,4784.9,0.87301]
[1756015383243,0.9196,4784.4,4784.3,0.4549]
[1756015385545,0.9196,4784.4,4784.3,0.7595]
[1756015385739,0.9196,4784.4,4784.3,1.0965]
[1756015386038,0.7014,4784.4,4784.3,1.3162]
[1756015390546,0.9192,4784.4,4784.3,1.3162]
[1756015392144,0.9192,4784.4,4784.3,0.9792]
[1756015392645,0.9192,4784.4,4784.3,1.3162]
[1756015392850,0.9192,4784.4,4784.2,0.41817]
[1756015393040,0.3745,4784.4,4784.3,0.4538]
[1756015393249,0.2183,4784.2,4784.1,0.09615083]
[1756015393555,0.8497,4783.7,4783.6,0.41822]
[1756015396452,0.6319,4783.7,4783.6,1.73022]
[1756015396651,0.6319,4784.1,4784.0,1.27639]
[1756015396851,0.6319,4784.1,4784.0,1.73019]
[1756015397058,0.8497,4784.1,4784.0,1.73019]
[1756015397448,0.8497,4784.1,4784.0,0.4538]
[1756015397854,0.8497,4784.0,4783.9,0.4182]
[1756015398055,0.8497,4784.0,4783.9,0.872]
[1756015399057,0.8497,4784.0,4783.9,0.4182]
[1756015399660,0.8497,4784.0,4783.9,0.872]
[1756015402268,0.8497,4784.0,4783.9,1.5105]
[1756015403367,0.6319,4784.0,4783.9,1.7302]
[1756015404057,0.3661,4784.4,4784.3,0.63786]
[1756015404256,0.6319,4784.8,4784.7,1.73012]
[1756015404562,0.8497,4784.0,4783.9,1.312]
[1756015405164,0.8497,4784.0,4783.9,0.4538]
[1756015405365,1.26789,4784.0,4783.8,0.4182]
[1756015405562,0.4836,4783.9,4783.8,0.872]
[1756015405767,0.8497,4783.9,4783.8,0.872]
[1756015405973,2.1365,4783.9,4783.8,1.7302]
[1756015407164,1.9187,4783.9,4783.8,1.7302]
[1756015410273,2.1365,4783.9,4783.8,1.312]
[1756015411270,3.6695,4783.9,4783.8,1.312]
[1756015414475,3.6695,4783.9,4783.8,0.975]
[1756015414673,0.8692,4783.2,4783.1,1.0088]
[1756015415376,0.8692,4783.2,4783.1,1.3485]
[1756015417372,0.6527,4783.2,4783.1,1.3485]
[1756015417774,0.2656,4783.2,4783.1,1.3485]
[1756015417974,1.533,4783.9,4783.5,1.1114]
[1756015417975,0.6527,4783.6,4783.5,1.1114]
[1756015418170,18.988,4783.8,4783.6,0.41822]
[1756015418480,19.6407,4783.8,4783.7,1.3485]
[1756015418678,20.37463312,4783.8,4783.7,1.3485]
[1756015419272,21.80873312,4783.8,4783.7,0.4643]
[1756015419674,0.7215,4783.5,4783.4,1.28024]
[1756015419873,0.8692,4783.5,4783.4,1.3485]
[1756015420078,0.8692,4783.5,4783.4,0.4643]
[1756015421084,0.8692,4783.5,4783.4,1.3485]
[1756015421783,0.6527,4783.5,4783.4,1.3485]
[1756015422284,1.17046457,4783.5,4783.4,1.3485]
[1756015422783,0.6527,4783.5,4783.4,1.3485]
[1756015422984,0.8692,4783.5,4783.4,1.3485]
[1756015423181,1.38710675,4783.5,4783.4,1.3485]
[1756015423578,20.37510675,4783.5,4783.4,0.4643]
[1756015425085,20.37510675,4783.5,4783.1,0.41826]
[1756015425086,19.50590675,4783.5,4783.1,0.4643]
[1756015425282,1.28746,4783.2,4783.1,1.3485]
[1756015425590,1.07096,4783.2,4783.1,1.3485]
[1756015425784,0.6527,4783.2,4783.1,1.3485]
[1756015427685,0.8692,4783.2,4783.1,1.3485]
[1756015430593,0.6527,4783.2,4783.1,1.3485]
[1756015431495,0.1477,4783.2,4783.1,1.3485]
[1756015432092,18.989,4783.2,4783.1,0.96276]
[1756015432797,19.2546,4783.2,4783.1,1.76676]
[1756015432999,18.989,4783.2,4783.1,1.76676]
[1756015433193,18.989,4783.2,4783.1,1.3485]
[1756015433395,19.4023,4783.2,4783.1,1.3485]
[1756015436492,19.8582,4783.2,4783.1,1.3485]
[1756015439389,19.6417,4783.2,4783.1,1.3485]
[1756015439795,0.4133,4783.2,4783.1,1.3485]
[1756015440098,19.4023,4783.2,4783.1,1.3485]
[1756015440400,19.6417,4783.2,4783.1,1.3485]
[1756015440599,0.3871,4782.7,4782.6,0.9628]
[1756015440798,0.6527,4782.7,4782.6,1.946785]
[1756015440998,19.6417,4782.7,4782.6,1.946785]
[1756015441198,19.8582,4782.7,4782.6,1.528485]
[1756015443202,19.8582,4782.7,4782.6,1.79110418]
[1756015443601,19.6417,4782.7,4782.6,1.79110418]
[1756015443997,19.6417,4782.7,4782.6,1.79119164]
[1756015444600,19.8736,4782.7,4782.6,1.79122687]
[1756015445401,19.8736,4782.7,4782.6,1.52857388]
[1756015445602,19.8736,4782.7,4782.6,1.79124648]
[1756015447700,19.6407,4782.7,4782.6,1.79124648]
[1756015448403,0.4133,4782.7,4782.6,1.79124648]
[1756015448604,0.653,4783.1,4783.0,1.78457]
[1756015448903,0.4235,4783.4,4783.3,0.65115]
[1756015449208,19.4115,4783.4,4783.3,2.0472226]
[1756015449706,19.641,4783.4,4783.3,2.0472226]
[1756015450207,19.641,4783.4,4783.3,2.22722602]
[1756015450701,19.642,4783.4,4783.3,2.22722602]
[1756015451706,19.8739,4783.4,4783.3,2.22722602]
[1756015453003,19.8739,4783.4,4783.3,1.80897602]
[1756015453600,0.653,4783.4,4783.3,1.80897602]
[1756015453801,19.1458,4783.4,4783.3,1.3663]
[1756015453997,19.641,4783.4,4783.3,1.80877874]
[1756015454200,19.8729,4783.4,4783.3,0.44247874]
[1756015454402,0.2295,4783.1,4783.0,0.2376]
[1756015454602,0.8849,4783.1,4783.0,0.91757178]
[1756015454803,0.8849,4783.1,4783.0,0.26252229]
[1756015455301,0.3873,4782.6,4782.5,0.41832]
[1756015455502,19.8729,4782.6,4782.5,1.07337907]
[1756015456209,19.8729,4782.6,4782.5,1.96457907]
[1756015456913,19.64,4782.6,4782.5,1.96457907]
[1756015457302,19.8719,4782.6,4782.5,1.96457907]
[1756015457810,21.304,4782.6,4782.5,1.96457907]
[1756015459806,21.0721,4782.6,4782.5,1.96457907]
[1756015460008,2.0851,4782.6,4782.5,1.96457907]
[1756015460219,1.4321,4782.6,4782.5,1.96457907]
[1756015460700,1.1112,4783.7,4783.6,0.96412]
[1756015460904,20.3277,4783.7,4783.6,1.96442524]
[1756015461101,0.537,4785.1,4785.0,0.8535]
[1756015461310,20.1538,4785.1,4785.0,0.29231948]
[1756015461514,1.1088,4784.2,4784.0,0.41819]
[1756015461812,0.537,4783.5,4783.4,1.30944]
[1756015462013,0.537,4783.5,4783.4,1.48912217]
[1756015462014,1.3407,4783.5,4783.4,1.48912217]
[1756015462316,1.3407,4783.5,4783.4,1.72662217]
[1756015463817,1.1112,4783.5,4783.4,1.96422217]
[1756015464115,0.6192,4783.5,4783.4,1.96415368]
[1756015464512,0.9615,4783.8,4783.7,1.78451]
[1756015464712,0.2319,4783.8,4783.7,1.96412368]
[1756015465112,1.3407,4783.8,4783.7,1.96412368]
[1756015465312,0.2319,4783.8,4783.7,1.96412368]
[1756015466016,1.5053,4783.9,4783.7,1.14372368]
[1756015466314,1.5053,4783.9,4783.8,1.54591368]
[1756015467310,0.2319,4784.1,4783.9,0.4182]
[1756015467515,0.2319,4784.1,4784.0,1.54591368]
[1756015467918,1.3407,4784.5,4784.4,1.30935]
[1756015468119,2.5684,4784.5,4784.4,1.54685]
[1756015469720,1.3407,4784.5,4784.4,1.54685]
[1756015470622,0.6192,4784.5,4784.4,1.78445]
[1756015470823,0.3897,4784.5,4784.4,1.78445]
[1756015471421,0.537,4784.5,4783.8,0.2376]
[1756015471628,1.3407,4784.2,4784.1,1.15888]
[1756015472013,1.3407,4784.2,4784.1,0.57608]
[1756015472419,1.3407,4784.2,4784.1,1.54688]
[1756015473620,0.2319,4784.2,4784.1,2.05838302]
[1756015473926,1.3306,4784.2,4784.1,1.54688]
[1756015474229,1.3306,4784.2,4784.1,1.82077939]
[1756015475026,1.3306,4784.2,4784.1,2.05997224]
[1756015475720,0.3884,4784.2,4784.1,2.05997224]
[1756015475920,0.2319,4784.2,4784.1,2.05997224]
[1756015476420,0.3933,4784.5,4784.4,1.51415]
[1756015476625,0.2368,4784.5,4784.4,2.02724224]
[1756015477018,1.3248,4784.5,4784.4,1.78804224]
[1756015477421,1.3248,4784.5,4784.4,1.78807884]
[1756015477918,1.3248,4784.5,4784.4,2.02727884]
[1756015478228,1.3248,4784.5,4784.4,0.69207884]
[1756015478618,1.3248,4784.5,4784.4,1.06997884]
[1756015478815,1.3248,4784.5,4784.4,1.78807884]
[1756015484031,1.3248,4784.5,4784.4,1.51415]
[1756015484331,1.3248,4784.5,4784.4,2.02732494]
[1756015484528,1.1086,4784.5,4784.4,2.02732494]
[1756015484725,3.6487,4784.9,4784.8,1.3352]
[1756015484926,3.4922,4784.9,4784.8,1.60917561]
[1756015485127,0.8718,4785.7,4785.6,0.8683]
[1756015485332,1.3248,4785.7,4785.6,2.02722561]
[1756015485533,0.6103,4785.7,4785.6,2.02722561]
[1756015486140,0.2368,4785.7,4785.6,2.02722561]
[1756015486532,0.7203,4786.0,4785.9,0.64052]
[1756015486837,1.8678,4786.0,4785.9,2.02719561]
[1756015487827,2.5823,4786.0,4785.9,2.02719561]
[1756015488033,2.5823,4786.0,4785.9,1.78799561]
[1756015488240,1.3248,4786.0,4785.9,1.78799561]
[1756015488439,1.3248,4786.0,4785.9,1.43999561]
[1756015490745,1.3248,4786.0,4785.9,1.78799561]
[1756015492742,1.1086,4786.0,4785.9,2.02719561]
[1756015492939,0.2368,4786.0,4785.9,2.02719561]
[1756015493344,0.9571,4786.0,4785.9,2.02719561]
[1756015494052,1.3248,4786.0,4785.9,1.75322]
[1756015494353,1.3248,4786.0,4785.9,1.79244461]
[1756015494552,1.3248,4786.0,4785.9,1.07434461]
[1756015495251,1.3248,4786.0,4785.9,1.42234461]
[1756015496356,1.3248,4786.0,4785.9,0.27842461]
[1756015497348,1.3248,4786.0,4785.9,0.42862461]
[1756015497551,1.3248,4786.0,4785.9,0.27841491]
[1756015500252,1.3248,4785.5,4785.4,0.41806]
[1756015501148,1.3248,4785.5,4785.4,1.51406]
[1756015501955,0.6095,4785.9,4785.8,0.78813]
[1756015502251,1.3248,4785.9,4785.8,1.51403]
[1756015502447,1.3248,4785.9,4785.5,0.41805]
[1756015502644,0.525,4785.6,4785.5,0.41805]
[1756015502847,1.3248,4785.6,4785.5,0.41805]
[1756015503752,1.3248,4785.6,4785.5,1.51355]
[1756015504452,1.3248,4785.6,4785.5,1.74405]
[1756015504854,1.3242,4786.0,4785.9,0.96452]
[1756015505053,1.3242,4786.0,4785.9,1.74972]
[1756015505456,0.7545,4786.0,4785.9,1.74972]
[1756015506057,0.2207,4786.0,4785.9,1.74972]
[1756015506252,2.9867,4786.3,4786.2,1.74969]
[1756015506453,3.3709,4786.3,4786.2,1.74969]
[1756015506660,1.3242,4786.3,4786.2,1.74969]
[1756015506859,1.3242,4786.3,4786.2,1.51919]
[1756015508461,0.3703,4786.3,4786.2,1.74969]
[1756015508960,0.5993,4786.3,4786.2,1.74969]
[1756015509349,1.3242,4786.3,4786.2,1.1012]
[1756015509560,1.3242,4786.3,4786.2,0.3863]
[1756015509766,0.5338,4786.0,4785.9,0.41802]
[1756015509953,1.3242,4786.0,4785.9,0.41802]
[1756015510154,1.3242,4786.0,4785.9,1.51922]
[1756015510349,1.3242,4786.0,4785.9,1.69923006]
[1756015510559,0.2207,4786.0,4785.9,1.92973006]
[1756015510756,1.5249,4786.2,4786.1,1.7497]
[1756015511060,1.5249,4786.2,4786.1,1.92971006]
[1756015511255,1.7456,4786.2,4786.1,1.92971006]
[1756015511460,2.6259,4786.2,4786.1,1.92971006]
[1756015511657,2.8491,4786.2,4786.1,1.51171006]
[1756015511962,0.7545,4785.7,4785.6,0.8795]
[1756015512162,1.3242,4785.7,4785.6,1.28125836]
[1756015512459,1.3242,4785.7,4785.6,1.69929836]
[1756015512862,1.3242,4785.7,4785.6,1.51924]
[1756015513057,1.3242,4785.7,4785.6,1.69937001]
[1756015515851,1.3242,4785.7,4785.6,0.56643001]
[1756015516459,1.3242,4785.7,4785.6,0.56667205]
[1756015516659,1.3242,4785.7,4785.6,0.18037205]
[1756015517457,1.3242,4785.0,4784.9,1.1012]
[1756015517656,1.3242,4785.0,4784.9,1.28157207]
[1756015518463,1.3242,4785.0,4784.9,1.69968207]
[1756015522163,1.3242,4785.0,4784.9,1.69959921]
[1756015522970,1.3242,4785.0,4784.9,1.51931]
[1756015523160,1.3242,4785.0,4784.9,1.69958487]
[1756015525972,1.3242,4785.0,4784.9,1.6995364]
[1756015526571,1.3242,4785.0,4784.9,0.33831071]
[1756015526776,1.3242,4785.0,4784.9,0.18021071]
[1756015527071,0.5338,4784.3,4784.2,1.1012]
[1756015527375,1.3242,4784.3,4784.2,0.1581]
[1756015527872,1.3242,4784.3,4784.2,0.8795]
[1756015528173,1.3242,4784.3,4784.2,1.1012]
[1756015530173,0.7545,4784.3,4784.2,1.3317]
[1756015530368,1.3242,4784.3,4784.2,1.3317]
[1756015530675,1.3242,4784.3,4784.2,1.1012]
[1756015532164,1.3242,4784.3,4784.2,0.1581]
[1756015532369,0.5338,4783.9,4783.5,0.5547]
[1756015532565,1.3242,4783.6,4783.3,0.41824]
[1756015532783,0.7904,4783.5,4783.2,0.5547]
[1756015532973,1.3242,4783.3,4783.2,1.1012]
[1756015535168,1.3242,4783.3,4783.2,1.3345]
[1756015535775,0.7545,4783.3,4783.2,1.3345]
[1756015535975,0.3703,4783.3,4783.2,1.3345]
[1756015536179,0.2207,4783.3,4783.2,1.3345]
[1756015539774,0.4822,4783.6,4783.5,0.94613]
[1756015539979,1.3238,4783.6,4783.5,1.73583]
[1756015540778,1.3238,4783.6,4783.5,1.34263]
[1756015541084,1.3238,4783.6,4783.5,1.73583]
[1756015541478,2.5604,4783.6,4783.5,1.73583]
[1756015542081,2.5604,4783.6,4783.5,1.50253]
[1756015542387,1.6292,4783.6,4783.5,1.73583]
[1756015542680,1.474,4783.6,4783.5,1.73583]
[1756015542985,1.2366,4783.6,4783.5,1.73583]
[1756015543484,1.2366,4783.6,4783.5,1.91461659]
[1756015543787,1.2366,4783.6,4783.5,1.91463074]
[1756015543979,2.7645,4783.6,4783.5,1.91463074]
[1756015544179,3.5281,4783.6,4783.5,1.91466927]
[1756015544385,4.0883,4783.6,4783.5,1.91466927]
[1756015545084,4.0883,4783.6,4783.5,1.50253]
[1756015546284,3.1571,4783.6,4783.5,1.91474748]
[1756015546785,3.0019,4783.6,4783.5,1.91474748]
[1756015547088,2.7645,4783.6,4783.5,1.91474748]
[1756015547782,3.0019,4783.6,4783.5,1.91474748]
[1756015549284,3.7018,4783.6,4783.5,1.91474748]
[1756015549488,4.0883,4783.6,4783.5,1.91474748]
[1756015549784,4.0883,4783.6,4783.5,1.73583]
[1756015549985,4.0883,4783.6,4783.5,1.91485518]
[1756015553090,4.0883,4783.6,4783.5,1.50253]
[1756015553292,4.0883,4783.6,4783.5,1.91505635]
[1756015554392,4.0883,4783.6,4783.5,1.68175635]
[1756015554894,4.0883,4783.6,4783.5,1.91505635]
[1756015557188,4.0883,4783.6,4783.5,1.68175635]
[1756015557389,4.0883,4783.6,4783.5,1.91505635]
[1756015557590,4.0883,4783.6,4783.5,1.68175635]
[1756015560099,4.0883,4783.6,4783.5,0.74285635]
[1756015560299,4.0883,4783.6,4783.5,0.59745635]
[1756015560796,4.0883,4783.6,4783.5,0.17922635]
[1756015561193,8.0883,4783.6,4783.1,0.41826]
[1756015561387,0.7976,4783.5,4783.2,0.17951625]
[1756015561698,1.3238,4783.0,4782.9,0.41828]
[1756015562099,5.3238,4783.0,4782.7,0.41829]
[1756015562299,0.3729,4782.4,4782.3,0.41834]
[1756015562597,0.3729,4781.6,4781.5,1.8710299]
[1756015562795,1.3238,4781.6,4781.5,0.4184]
[1756015563098,1.3238,4781.6,4781.5,0.5783]
[1756015563991,1.3238,4781.6,4781.5,0.7237]
[1756015564191,1.3238,4781.6,4781.5,0.9608]
[1756015564700,0.2987,4782.7,4782.6,1.7466]
[1756015564998,0.5267,4783.1,4783.0,1.74657]
[1756015565188,0.6102,4783.4,4783.3,0.41824]
[1756015565389,2.9128,4783.6,4783.5,0.96003]
[1756015565591,2.9128,4783.6,4783.5,1.74653]
[1756015566195,3.523,4783.6,4783.5,1.74653]
[1756015566393,3.8663,4783.6,4783.5,1.74653]
[1756015566994,3.523,4783.6,4783.5,1.74653]
[1756015567896,2.9128,4783.6,4783.5,1.74653]
[1756015568098,2.7645,4783.6,4783.5,1.74653]
[1756015568901,2.9128,4783.6,4783.5,1.74653]
[1756015569802,3.523,4783.6,4783.5,1.74653]
[1756015570102,4.0865,4783.6,4783.5,1.74653]
[1756015572799,3.523,4783.6,4783.5,1.74653]
[1756015573003,2.7645,4783.6,4783.5,1.74653]
[1756015573202,2.7645,4783.6,4783.5,1.92007138]
[1756015573502,3.523,4783.6,4783.5,1.92007138]
[1756015574493,4.0865,4783.6,4783.5,1.92007138]
[1756015576802,4.0865,4783.6,4783.5,1.70357138]
[1756015577797,4.0865,4783.6,4783.5,1.13357138]
[1756015578197,4.0865,4783.6,4783.5,0.59177138]
[1756015578501,4.0865,4783.6,4783.5,0.17354138]
[1756015578701,8.0865,4783.6,4783.4,0.41823]
[1756015579004,1.322,4783.5,4783.4,0.41823]
[1756015579200,4.5267,4783.5,4782.5,0.3329]
[1756015579404,0.5267,4782.6,4782.5,1.05821]
[1756015579605,1.0902,4782.6,4782.5,1.74661]
[1756015579805,0.9419,4782.6,4782.5,1.74661]
[1756015580204,0.3706,4782.6,4782.5,1.74661]
[1756015580400,1.0902,4782.9,4782.8,0.65309]
[1756015580605,1.0902,4782.9,4782.8,1.74659]
[1756015580802,0.1504,4782.9,4782.8,1.74659]
[1756015581108,4.0865,4783.6,4783.5,1.74653]
[1756015581900,4.0865,4783.6,4783.5,0.41823]
[1756015582404,0.3784,4782.8,4782.7,0.2165]
[1756015582600,1.322,4782.8,4782.7,0.9418]
[1756015582806,1.322,4782.8,4782.7,1.7466]
[1756015584302,1.322,4782.8,4782.7,1.0227]
[1756015584508,1.322,4782.8,4782.7,1.5095]
[1756015584710,1.322,4782.8,4782.7,1.7466]
[1756015585013,1.0902,4782.8,4782.7,1.7466]
[1756015586006,1.5279,4783.6,4783.5,0.41823]
[1756015586214,2.6181,4783.6,4783.5,1.74653]
[1756015586413,2.8499,4783.6,4783.5,1.74653]
[1756015587313,2.6181,4783.6,4783.5,1.74653]
[1756015587713,2.8499,4783.6,4783.5,1.74653]
[1756015590812,2.8499,4783.6,4783.5,1.92956302]
[1756015591015,2.6181,4783.6,4783.5,1.92956302]
[1756015591313,1.5279,4783.6,4783.5,1.92956302]
[1756015592116,2.3979,4783.6,4783.5,1.92956302]
[1756015592314,2.6181,4783.6,4783.5,1.92955821]
[1756015592809,2.0546,4783.6,4783.5,1.92956293]
[1756015593014,1.5279,4783.6,4783.5,1.92956293]
[1756015593409,3.9767,4783.6,4783.5,1.92956293]
[1756015594614,0.41809,4785.1,4785.0,0.654]
[1756015594615,0.3517,4785.1,4785.0,0.654]
[1756015594810,0.3851,4785.3,4785.2,0.94758]
[1756015595006,1.04465,4787.8,4785.9,1.39872]
[1756015595007,0.3517,4786.0,4785.9,1.39872]
[1756015595211,2.5360368,4788.6,4785.9,1.39872]
[1756015595212,1.12,4786.9,4786.8,0.41793]
[1756015595613,0.7368,4786.9,4786.8,1.72593]
[1756015595913,0.1559,4788.3,4788.2,0.56381]
[1756015596113,0.3943,4788.3,4788.2,1.68933767]
[1756015596312,0.746,4788.3,4788.2,1.50641]
[1756015596517,0.746,4788.3,4788.2,1.72581]
[1756015596718,0.2384,4788.3,4788.2,1.72581]
[1756015597614,0.5901,4788.3,4788.2,1.72581]
[1756015597814,3.0416,4788.7,4788.3,0.41781]
[1756015598017,2.8549,4788.7,4788.6,1.72578]
[1756015598218,3.2066,4788.7,4788.6,1.72578]
[1756015598420,3.4359,4788.7,4788.6,1.72578]
[1756015599221,3.4359,4788.7,4788.6,1.308]
[1756015599721,2.0833,4788.7,4788.6,1.308]
[1756015600125,0.9753,4788.7,4788.6,1.308]
[1756015602521,1.4158,4789.1,4788.9,1.17905]
[1756015602724,1.4158,4789.1,4789.0,0.9807]
[1756015603018,2.3911,4789.1,4789.0,0.9807]
[1756015603220,2.3911,4789.1,4789.0,0.513]
[1756015603921,2.3911,4789.1,4789.0,0.9807]
[1756015604124,2.3911,4789.1,4789.0,1.308]
[1756015604323,0.9753,4789.1,4789.0,1.308]
[1756015606423,0.746,4789.1,4789.0,1.308]
[1756015607020,0.9753,4789.1,4789.0,1.308]
[1756015609321,0.9753,4789.1,4789.0,0.3654]
[1756015609718,0.9753,4789.1,4789.0,0.7489]
[1756015610027,0.9753,4789.1,4789.0,1.308]
[1756015610820,0.746,4789.1,4789.0,1.308]
[1756015612029,0.9753,4789.1,4789.0,1.308]
[1756015613229,0.746,4789.1,4789.0,1.308]
[1756015613929,0.9753,4789.1,4789.0,1.308]
[1756015617429,0.9753,4789.1,4789.0,0.2194]
[1756015618132,0.9753,4789.1,4789.0,0.3654]
[1756015618331,0.9753,4789.1,4789.0,0.5972]
[1756015620227,0.9753,4789.1,4789.0,0.2194]
[1756015620831,0.9753,4789.1,4789.0,1.308]
[1756015621220,0.9753,4789.1,4789.0,0.7448]
[1756015621420,0.9753,4789.1,4789.0,0.2194]
[1756015621627,0.581,4788.5,4788.4,0.9473]
[1756015621832,0.9753,4788.5,4788.4,1.5064]
[1756015622041,0.746,4788.5,4788.4,1.5064]
[1756015622243,0.9753,4788.9,4788.8,1.72577]
[1756015622638,0.3943,4789.1,4789.0,0.41775]
[1756015622844,0.9753,4789.1,4789.0,1.72575]
[1756015624243,0.9753,4789.1,4789.0,1.4909864]
[1756015624440,1.48659398,4789.1,4789.0,1.4909864]
[1756015625234,0.74969398,4789.1,4789.0,1.4909864]
[1756015625541,1.23479398,4789.1,4789.0,1.4909864]
[1756015625843,1.47509398,4789.1,4789.0,1.4909864]
[1756015627543,1.23479398,4789.1,4789.0,1.4909864]
[1756015627743,0.87519398,4789.1,4789.0,1.49143646]
[1756015628043,1.23479398,4789.1,4789.0,1.49143646]
[1756015628946,1.47509398,4789.1,4789.0,1.49143646]
[1756015629745,1.23479398,4789.1,4789.0,1.49143646]
[1756015630047,0.51129398,4789.1,4789.0,1.49143646]
[1756015630447,1.47509398,4789.1,4789.0,1.49143646]
[1756015631050,1.47509398,4789.1,4789.0,1.49147753]
[1756015631442,1.23479398,4789.1,4789.0,1.49147753]
[1756015631748,0.51129398,4789.1,4789.0,1.49147753]
[1756015633248,1.1798,4789.4,4789.0,1.49147753]
[1756015633249,1.1798,4789.4,4789.0,0.96197753]
[1756015633447,1.1798,4789.4,4789.3,1.3258]
[1756015633641,1.1798,4789.4,4789.3,1.50927753]
[1756015633642,2.04380717,4789.4,4789.3,1.50927753]
[1756015633839,0.86400717,4789.4,4789.3,1.92699753]
[1756015634449,1.46820717,4789.4,4789.3,0.54997753]
[1756015634650,1.46820717,4789.4,4789.3,0.40387753]
[1756015635451,1.46820717,4789.4,4789.3,1.15267753]
[1756015635647,1.46820717,4789.4,4789.3,1.50927753]
[1756015638247,1.22790717,4789.4,4789.3,1.67429495]
[1756015638956,1.22769597,4789.4,4789.3,1.50927753]
[1756015639148,1.46799597,4789.4,4789.3,1.50927753]
[1756015639350,0.9638,4789.4,4789.3,1.50927753]
[1756015641156,0.9638,4789.4,4789.3,1.50914746]
[1756015643058,0.7235,4789.4,4789.3,1.50912989]
[1756015643556,0.9638,4789.4,4789.3,1.50912989]
[1756015644648,0.9638,4789.4,4789.3,1.50911729]